bitfinex/quotes_ETHUSD_20240823
["timestamp","ask_amount","ask_price","bid_price","bid_amount"]
[1724376368005,2.4473,2642.7,2642.1,7.56949]
[1724376368392,2.4473,2642.7,2642.2,3.78469]
[1724376368608,2.4473,2642.7,2642.3,4.541461]
[1724376368809,2.4473,2642.7,2642.4,3.78443]
[1724376369013,2.4473,2642.7,2642.4,7.56877]
[1724376369212,2.4473,2642.7,2642.5,3.78425]
[1724376369511,1.12788664,2643.0,2642.6,3.78407]
[1724376369512,2.3478,2642.9,2642.6,3.78407]
[1724376371107,2.3478,2642.9,2642.7,3.78395]
[1724376371941,2.3478,2642.9,2642.8,3.78386]
[1724376372148,2.3478,2643.1,2642.9,3.78364]
[1724376372436,2.3478,2643.1,2642.8,3.78386]
[1724376372637,2.3478,2643.1,2642.9,3.78371]
[1724376376545,2.3478,2643.1,2642.9,3.26671]
[1724376380313,2.3478,2643.1,2642.7,3.78399]
[1724376380314,2.3768,2643.0,2642.7,3.78393]
[1724376380574,2.3768,2642.9,2642.6,3.78414]
[1724376383470,2.3768,2642.9,2642.6,7.56821]
[1724376383698,2.3768,2642.9,2642.6,3.78407]
[1724376383961,2.3768,2642.9,2642.6,7.56814]
[1724376384162,2.3768,2642.9,2642.6,3.78407]
[1724376385867,2.3768,2642.9,2642.6,7.56814]
[1724376386270,2.3768,2642.9,2642.7,3.784]
[1724376388246,2.3768,2642.9,2642.8,3.78386]
[1724376389389,2.3875,2643.3,2643.1,3.78342]
[1724376389548,5.3875,2643.3,2643.1,3.78342]
[1724376389749,5.3875,2643.3,2642.9,7.56725]
[1724376390504,5.3875,2643.3,2643.0,3.78356]
[1724376391982,5.3875,2643.3,2642.9,3.78358]
[1724376392184,5.3875,2643.3,2643.0,3.78357]
[1724376395108,5.3875,2643.3,2642.8,3.78373]
[1724376395255,2.3647,2643.1,2642.8,3.78373]
[1724376401704,2.3647,2643.1,2642.7,3.78389]
[1724376402975,2.3647,2643.1,2642.7,7.5678]
[1724376403204,2.3647,2643.1,2642.7,3.78389]
[1724376405376,2.3684,2643.0,2642.7,3.78389]
[1724376405693,2.3684,2642.9,2642.7,3.78389]
[1724376408214,2.3684,2642.9,2642.7,7.56783]
[1724376411917,2.3684,2642.9,2642.8,3.78386]
[1724376412406,2.3684,2642.9,2642.3,3.78451]
[1724376412565,2.3684,2642.9,2641.9,0.91194874]
[1724376412566,2.2728,2642.4,2642.2,3.78471]
[1724376412772,2.2728,2642.4,2642.0,3.78493]
[1724376413021,2.2728,2642.6,2642.5,3.78423]
[1724376413798,2.2728,2642.6,2642.4,3.78442]
[1724376414012,2.2728,2642.6,2642.5,3.78429]
[1724376420713,2.2728,2642.6,2642.4,3.78442]
[1724376421017,2.2728,2642.6,2642.5,3.78429]
[1724376421920,2.2728,2642.6,2642.5,7.56858]
[1724376422124,2.3445,2642.8,2642.7,3.78387]
[1724376423298,2.3445,2642.8,2642.7,7.56787]
[1724376424214,5.4474,2643.1,2642.9,3.78365]
[1724376424420,2.4474,2643.1,2642.9,3.78365]
[1724376425002,2.4474,2643.1,2642.7,7.56782]
[1724376425311,2.4474,2643.1,2642.8,3.7838]
[1724376429830,2.4474,2643.1,2642.7,3.78387]
[1724376430933,1.12788664,2643.0,2642.7,3.78387]
[1724376431228,2.3613,2642.9,2642.7,3.78387]
[1724376431942,2.3613,2642.9,2642.7,7.56779]
[1724376432801,2.3613,2642.9,2642.8,3.78386]
[1724376434618,2.3613,2642.9,2642.7,3.78387]
[1724376435329,2.3613,2642.9,2642.7,7.56781]
[1724376435527,2.3613,2642.9,2642.8,3.78386]
[1724376438316,2.3613,2642.9,2642.7,3.78387]
[1724376439633,2.3613,2642.9,2642.8,3.78386]
[1724376440165,2.3646,2643.2,2642.9,3.78371]
[1724376444215,2.3646,2643.2,2642.7,7.56774]
[1724376444615,2.3646,2643.2,2642.8,3.78383]
[1724376444823,2.467,2643.1,2642.8,3.78383]
[1724376450581,2.467,2643.1,2642.8,7.56762]
[1724376450783,2.467,2643.1,2642.9,3.78367]
[1724376450978,2.467,2643.1,2643.0,3.78357]
[1724376459813,2.467,2643.1,2642.8,3.78378]
[1724376462769,2.467,2643.1,2642.9,3.78371]
[1724376466770,2.281,2643.0,2642.7,3.78389]
[1724376468363,2.281,2643.0,2642.8,3.78379]
[1724376480539,2.3515,2642.8,2642.5,3.78417]
[1724376480835,1.12788664,2642.7,2642.3,3.78447]
[1724376481036,2.3515,2642.6,2642.4,3.78436]
[1724376481942,2.3515,2642.6,2642.0,3.785]
[1724376481943,1.12788664,2642.5,2642.0,3.785]
[1724376482243,2.3515,2642.2,2641.9,0.1266786]
[1724376482444,2.3515,2642.0,2641.9,0.1266786]
[1724376483716,5.3515,2642.0,2641.9,0.1266786]
[1724376486213,5.3515,2642.0,2640.5,3.78712]
[1724376486214,2.4203,2641.9,2640.2,3.78756]
[1724376486450,2.4203,2640.2,2639.6,3.78837]
[1724376486762,2.4203,2639.7,2639.3,3.78885]
[1724376486975,3.54818664,2639.7,2639.2,0.1266786]
[1724376487111,2.4203,2639.7,2639.3,3.78885]
[1724376487316,2.4203,2640.0,2639.3,4.91669664]
[1724376487511,2.4203,2640.0,2639.7,3.7883]
[1724376489611,2.4203,2640.0,2639.5,3.78855]
[1724376489612,2.4203,2640.0,2639.6,3.78844]
[1724376490070,4.72133366,2640.2,2639.5,3.78855]
[1724376490071,4.72133366,2640.2,2640.1,3.78773]
[1724376490218,4.72133366,2640.2,2639.5,3.78851]
[1724376490219,4.72133366,2640.2,2639.9,4.91578664]
[1724376490413,4.72133366,2640.2,2640.0,3.78786]
[1724376490729,4.72133366,2640.2,2639.7,3.78826]
[1724376491341,4.72133366,2640.2,2639.9,3.78791]
[1724376491814,4.72133366,2640.2,2639.9,3.7879]
[1724376495532,4.72133366,2640.2,2639.9,7.57583]
[1724376495923,4.72133366,2640.2,2639.9,3.7879]
[1724376496125,4.72133366,2640.2,2639.9,7.57583]
[1724376497046,4.72133366,2640.2,2640.0,3.78787]
[1724376498433,4.72133366,2640.2,2639.9,3.7879]
[1724376499761,4.72133366,2640.2,2640.1,3.78773]
[1724376499981,1.52,2640.2,2640.1,3.78773]
[1724376502070,1.52,2640.2,2640.1,8.333018]
[1724376502271,2.3307,2640.6,2640.4,7.57443]
[1724376502434,2.3307,2640.6,2640.4,3.78721]
[1724376502896,2.71162259,2641.6,2640.4,3.78721]
[1724376502897,2.4672,2640.9,2640.4,3.78721]
[1724376503056,0.24672,2640.8,2640.6,3.78692]
[1724376503254,2.4672,2640.9,2640.4,3.78717]
[1724376504368,2.4672,2640.9,2640.2,7.575]
[1724376504551,2.4672,2640.9,2640.2,3.78749]
[1724376505381,2.4672,2640.9,2640.3,3.78736]
[1724376505590,0.24672,2640.8,2640.2,3.78749]
[1724376505899,0.24672,2640.8,2640.2,3.78747]
[1724376506055,0.24672,2640.8,2640.2,7.57495]
[1724376506262,2.4672,2640.9,2640.6,3.78699]
[1724376511256,2.4672,2640.9,2640.5,3.78708]
[1724376511862,2.4672,2640.9,2640.4,3.78729]
[1724376512067,2.4672,2640.9,2640.8,3.78673]
[1724376512382,2.4672,2640.9,2640.7,3.78679]
[1724376513182,2.4672,2640.9,2640.5,3.7871]
[1724376514189,2.2949,2640.7,2639.3,2.3105]
[1724376514388,2.2949,2640.7,2639.8,3.78808]
[1724376514715,2.2949,2640.7,2639.9,3.78801]
[1724376514925,2.2949,2640.7,2640.0,3.78786]
[1724376515214,2.2949,2640.7,2640.1,3.78772]
[1724376515419,2.2949,2640.7,2640.2,3.78756]
[1724376516573,2.2949,2640.7,2639.9,3.78798]
[1724376517882,2.2949,2640.7,2639.9,7.57596]
[1724376518082,2.2949,2640.7,2639.9,7.57593]
[1724376518299,2.2949,2640.7,2640.0,3.78782]
[1724376520135,2.82439,2640.7,2640.0,3.78782]
[1724376520282,3.0,2640.6,2640.0,3.78782]
[1724376520482,2.3274,2640.6,2640.0,3.78782]
[1724376520719,2.3274,2640.5,2640.0,3.78782]
[1724376521238,2.3274,2640.5,2639.9,3.78795]
[1724376521387,2.3274,2640.3,2639.7,7.5764]
[1724376521586,2.3274,2640.3,2639.8,3.78816]
[1724376521984,2.3274,2640.3,2639.7,3.7882]
[1724376522214,2.3274,2640.3,2639.3,3.78884]
[1724376522215,2.3274,2640.2,2639.5,3.78845]
[1724376522681,2.4579,2640.1,2639.6,3.78835]
[1724376522983,2.4579,2640.1,2639.5,3.78845]
[1724376523179,2.4579,2640.1,2639.6,3.78845]
[1724376524692,2.4579,2640.1,2639.7,3.7883]
[1724376525367,2.3252,2640.0,2639.2,3.9156086]
[1724376525712,2.4671,2639.9,2639.5,3.78848]
[1724376525933,2.4671,2639.9,2639.8,3.78816]
[1724376526482,3.0,2640.2,2640.1,3.78773]
[1724376526483,5.4671,2640.2,2640.1,3.78773]
[1724376526741,2.4671,2640.2,2639.8,7.5761]
[1724376526963,5.4671,2640.2,2639.8,3.78803]
[1724376527287,5.4671,2640.2,2639.7,3.78825]
[1724376527685,5.4671,2640.2,2639.9,3.78799]
[1724376528114,5.4671,2640.2,2639.9,3.78793]
[1724376528698,5.4671,2640.2,2639.7,3.7882]
[1724376528917,5.4671,2640.2,2639.8,3.78815]
[1724376529851,5.4671,2640.2,2639.7,3.7882]
[1724376530693,5.4671,2640.2,2639.7,7.5764]
[1724376531014,5.4671,2640.2,2639.7,3.7882]
[1724376532409,5.4671,2640.2,2639.7,7.57641]
[1724376532596,2.4671,2640.2,2639.9,3.78801]
[1724376533652,2.4671,2640.2,2639.7,8.334031]
[1724376533943,2.4671,2640.2,2639.9,3.78799]
[1724376535376,2.4671,2640.2,2639.8,3.78816]
[1724376535596,2.4671,2640.2,2639.9,3.788]
[1724376536163,2.4671,2640.2,2639.2,0.1266786]
[1724376536364,2.4671,2640.2,2639.6,3.78831]
[1724376538947,2.4671,2640.2,2639.7,3.78822]
[1724376539480,2.4671,2640.2,2639.8,3.78816]
[1724376539991,2.4671,2640.2,2639.2,1.22503573]
[1724376540336,2.4671,2640.2,2639.2,5.01396573]
[1724376540544,2.3795,2640.1,2639.3,3.78878]
[1724376540776,2.3795,2640.1,2639.4,7.57738]
[1724376540947,2.3795,2640.1,2639.4,3.78866]
[1724376541146,2.3795,2640.0,2639.2,3.9155986]
[1724376541328,2.3795,2639.9,2639.2,3.9155986]
[1724376541529,2.3795,2639.9,2639.2,0.1266786]
[1724376542145,2.3795,2639.8,2639.2,0.1266786]
[1724376542283,0.53795,2639.7,2639.2,0.1266786]
[1724376542465,2.3795,2639.6,2639.2,3.9156886]
[1724376543258,2.3795,2639.6,2639.2,7.7046286]
[1724376543574,2.3795,2639.6,2639.2,3.9156186]
[1724376544203,2.3795,2639.6,2639.2,3.9156886]
[1724376546172,2.3795,2639.6,2639.2,3.9156486]
[1724376546411,2.3795,2639.6,2639.2,4.30721346]
[1724376546557,2.3795,2639.6,2639.4,3.78862]
[1724376546756,2.3795,2639.6,2639.4,7.57728]
[1724376546981,2.3795,2639.6,2639.4,3.78862]
[1724376547397,2.3795,2639.6,2639.4,7.57727]
[1724376547606,2.3795,2639.6,2639.4,3.78862]
[1724376548522,2.3795,2639.6,2639.3,3.78888]
[1724376549118,2.3795,2639.6,2639.2,3.9155886]
[1724376551576,2.3795,2639.6,2639.3,3.78884]
[1724376552416,2.61745,2639.6,2639.2,0.1266786]
[1724376553671,2.3795,2639.6,2639.2,3.9155886]
[1724376553887,2.3795,2639.6,2639.3,3.78885]
[1724376556049,2.3795,2639.6,2639.3,3.78877]
[1724376558839,2.3795,2639.6,2639.2,3.9156886]
[1724376559638,2.3795,2639.6,2639.3,3.78885]
[1724376563065,2.3795,2639.6,2639.3,7.57766]
[1724376563382,2.3795,2639.6,2639.3,0.77043386]
[1724376563689,3.0,2640.0,2639.7,3.78821]
[1724376563690,2.2737,2639.9,2639.7,3.78821]
[1724376565772,2.2737,2639.9,2639.2,3.9156086]
[1724376566089,2.2737,2639.9,2639.3,3.78877]
[1724376570616,2.2737,2639.9,2639.4,3.78866]
[1724376571394,2.2737,2639.9,2639.5,3.7885]
[1724376572611,2.50107,2639.9,2639.3,3.7888]
[1724376572794,3.0,2639.8,2639.3,3.7888]
[1724376572999,2.3222,2639.7,2639.3,3.7888]
[1724376574738,2.3222,2639.7,2639.3,7.57761]
[1724376575085,2.3222,2639.7,2639.3,3.7888]
[1724376575398,2.3222,2639.7,2639.3,7.57759]
[1724376575603,2.3222,2639.7,2639.4,3.7887]
[1724376576522,2.3222,2639.7,2639.6,3.78845]
[1724376578220,2.3222,2639.7,2639.4,3.78873]
[1724376580107,2.3222,2639.7,2639.4,3.78867]
[1724376580648,2.3222,2639.7,2639.5,3.78859]
[1724376584037,2.3222,2639.7,2639.3,3.78887]
[1724376584234,2.3222,2639.7,2639.3,3.7888]
[1724376584765,2.3222,2639.7,2639.4,3.78872]
[1724376585571,2.55442,2639.7,2639.2,0.1266786]
[1724376585733,2.3826,2639.5,2639.2,0.1266786]
[1724376593774,2.3826,2639.5,2639.2,3.9156886]
[1724376593920,2.3826,2639.5,2639.3,3.78877]
[1724376594126,2.3826,2639.5,2639.3,4.55921586]
[1724376595874,2.3826,2639.5,2639.4,3.78873]
[1724376596429,2.3826,2639.5,2639.3,4.55931586]
[1724376596627,2.3826,2639.5,2639.2,3.9156886]
[1724376596832,2.3826,2639.5,2639.2,3.9156286]
[1724376597847,2.3826,2639.5,2639.2,7.7045786]
[1724376598048,2.3826,2639.5,2639.3,3.78886]
[1724376598442,2.3826,2639.5,2639.4,3.78873]
[1724376598668,2.3379,2640.0,2639.7,3.78828]
[1724376599068,2.3379,2640.0,2639.5,7.577]
[1724376599292,2.3379,2640.0,2639.5,3.78847]
[1724376599845,2.3379,2640.0,2639.5,7.57697]
[1724376600102,2.3379,2640.0,2639.5,3.78847]
[1724376601864,2.3379,2640.0,2639.5,7.57699]
[1724376602163,2.3379,2640.0,2639.6,3.78844]
[1724376602412,3.02369,2640.0,2639.6,3.78844]
[1724376602563,3.0,2639.9,2639.6,3.78844]
[1724376602794,3.0,2639.9,2639.7,3.7883]
[1724376602984,2.3379,2640.0,2639.8,3.78808]
[1724376603195,2.3379,2640.0,2639.9,3.78802]
[1724376603350,2.3379,2640.0,2639.8,3.78808]
[1724376603851,2.3379,2640.0,2639.8,3.78806]
[1724376604051,2.3379,2640.0,2639.9,3.78802]
[1724376604310,2.3379,2640.0,2639.8,3.78806]
[1724376604663,2.3629,2640.4,2640.3,3.78744]
[1724376606574,2.3629,2640.4,2640.2,3.78758]
[1724376606787,2.3629,2640.4,2639.3,0.89206112]
[1724376606996,2.69859,2640.3,2639.6,3.78831]
[1724376607316,2.4623,2640.3,2639.4,3.78862]
[1724376607500,2.4623,2640.1,2639.4,3.78862]
[1724376607813,2.4623,2640.1,2639.6,3.78843]
[1724376609097,2.70853,2640.1,2639.4,3.78862]
[1724376609258,2.70853,2640.1,2639.5,3.78859]
[1724376610022,2.70853,2640.1,2639.4,3.78862]
[1724376610792,2.70853,2640.1,2639.4,7.57728]
[1724376611001,2.70853,2640.1,2639.5,3.78856]
[1724376611160,2.70853,2640.1,2639.6,3.78844]
[1724376611759,2.70853,2640.1,2639.6,7.5768]
[1724376612597,2.70853,2640.1,2639.6,3.78836]
[1724376612920,2.70853,2640.1,2639.7,3.78824]
[1724376615637,0.270853,2640.0,2639.2,0.1266786]
[1724376615922,2.3767,2639.9,2639.4,3.7887]
[1724376616210,2.3767,2639.8,2639.4,3.7887]
[1724376616567,2.3767,2639.7,2639.4,3.7887]
[1724376617187,2.3767,2639.7,2639.2,3.9155886]
[1724376617972,2.3767,2639.7,2639.3,3.78881]
[1724376618292,2.3767,2639.7,2639.3,3.7888]
[1724376618502,2.3767,2639.7,2639.3,7.5776]
[1724376618677,2.3767,2639.7,2639.3,3.7888]
[1724376618897,2.3767,2639.7,2639.4,3.78873]
[1724376620327,2.91437,2639.7,2639.2,0.1266786]
[1724376620528,2.4315,2639.5,2639.2,0.1266786]
[1724376622106,2.4315,2639.5,2639.2,3.9156186]
[1724376622433,2.4315,2639.5,2639.2,3.9156686]
[1724376622574,2.4315,2639.5,2639.2,0.1266786]
[1724376623919,2.4315,2639.5,2639.2,3.9156586]
[1724376624226,2.4315,2639.5,2639.2,0.1266786]
[1724376626475,0.91705037,2639.5,2639.2,0.1266786]
[1724376626655,2.3403,2639.4,2639.2,0.1266786]
[1724376627027,3.0,2639.4,2639.2,0.1266786]
[1724376627366,2.3403,2639.3,2639.2,0.1266786]
[1724376631890,2.3403,2639.3,2639.2,3.9156986]
[1724376632523,2.3403,2639.3,2639.2,0.1266786]
[1724376643057,2.3403,2639.3,2639.2,3.9156986]
[1724376643557,2.3403,2639.3,2639.2,0.1266786]
[1724376644832,2.4869,2639.6,2639.4,3.78873]
[1724376645029,2.4869,2639.6,2639.4,4.55908586]
[1724376645179,2.4869,2639.6,2639.5,3.78859]
[1724376645380,2.4869,2639.6,2639.4,4.55907586]
[1724376645693,2.4869,2639.6,2639.4,3.78864]
[1724376646310,2.4869,2639.6,2639.2,3.9155586]
[1724376646523,2.4869,2639.6,2639.3,3.78881]
[1724376650225,2.4869,2639.6,2639.4,3.78873]
[1724376651437,3.0,2639.7,2639.4,3.78873]
[1724376651821,3.0,2639.7,2639.4,4.55906886]
[1724376652127,2.4558,2639.8,2639.4,4.55906886]
[1724376652648,2.4558,2639.8,2639.4,0.77042886]
[1724376653042,2.4558,2639.8,2639.3,3.78887]
[1724376656145,2.4558,2639.8,2639.4,3.78871]
[1724376658191,2.4558,2639.8,2639.5,3.78858]
[1724376658459,2.4558,2639.8,2639.6,3.78844]
[1724376658613,3.8009,2640.0,2639.6,3.78838]
[1724376658833,3.8009,2640.0,2639.7,4.167138]
[1724376659667,3.8009,2640.0,2639.7,0.378838]
[1724376661065,3.8009,2640.0,2639.3,3.78877]
[1724376661264,3.8009,2640.0,2639.4,3.78866]
[1724376663676,3.8009,2640.0,2639.5,3.78858]
[1724376663840,2.29,2639.9,2639.3,3.78877]
[1724376664357,2.29,2639.9,2639.3,7.57758]
[1724376664754,2.29,2639.9,2639.3,8.46104606]
[1724376665156,2.29,2639.9,2639.4,3.78872]
[1724376666973,2.29,2639.9,2639.5,3.78859]
[1724376668364,2.29,2639.9,2639.2,1.25708063]
[1724376668365,1.13040203,2639.6,2639.2,0.1266786]
[1724376668559,2.4005,2639.5,2639.2,0.1266786]
[1724376668760,2.4005,2639.3,2639.2,0.1266786]
[1724376669486,5.4005,2639.3,2639.2,0.1266786]
[1724376671172,2.4005,2639.3,2639.2,0.1266786]
[1724376673632,5.3041,2639.3,2639.2,0.1266786]
[1724376674450,2.3041,2639.3,2639.2,0.1266786]
[1724376675260,2.53451,2639.3,2639.2,0.1266786]
[1724376675464,5.53451,2639.3,2639.2,0.1266786]
[1724376677148,5.3041,2639.3,2639.2,0.1266786]
[1724376677351,2.3041,2639.3,2639.2,0.1266786]
[1724376677563,5.3041,2639.3,2639.2,0.1266786]
[1724376677751,2.3041,2639.3,2639.2,0.1266786]
[1724376693099,2.3041,2639.3,2638.1,3.79055]
[1724376693305,2.3745,2638.7,2637.9,7.58162]
[1724376693586,2.3745,2638.7,2637.9,3.7908]
[1724376693794,2.2644,2638.6,2637.9,3.7908]
[1724376694002,2.2644,2638.6,2637.6,2.3045]
[1724376694203,2.79084,2638.5,2637.8,3.79103]
[1724376694567,1.13197496,2638.2,2637.8,3.79103]
[1724376695313,2.2644,2638.1,2637.8,3.79103]
[1724376696589,2.2644,2638.1,2636.9,3.79228]
[1724376696590,2.3628,2638.0,2637.2,3.79177]
[1724376696766,2.3628,2637.9,2636.6,2.4357786]
[1724376696969,2.3628,2637.8,2636.6,2.4357786]
[1724376697191,2.3628,2637.8,2636.8,3.79236]
[1724376697395,2.3628,2637.8,2636.9,3.7923]
[1724376697664,2.3628,2637.6,2636.7,3.79252]
[1724376697917,2.2938,2637.5,2636.7,3.79252]
[1724376698117,5.2938,2637.5,2636.8,3.79244]
[1724376698415,5.2938,2637.5,2636.6,7.7120186]
[1724376698579,3.0,2637.4,2636.7,4.56380186]
[1724376698773,2.2938,2637.5,2636.7,4.56380186]
[1724376699376,2.2938,2637.5,2636.8,3.79247]
[1724376700289,2.2938,2637.5,2636.8,7.58494]
[1724376700494,2.2938,2637.5,2636.8,3.79239]
[1724376700692,2.2938,2637.5,2636.9,3.79231]
[1724376700895,2.2938,2637.5,2637.0,3.79207]
[1724376701097,2.2938,2637.5,2637.0,7.58417]
[1724376701608,2.3741,2637.4,2636.9,3.79231]
[1724376701809,2.3741,2637.4,2636.6,0.1266786]
[1724376702011,2.2792,2637.0,2636.6,3.9193486]
[1724376702316,2.2792,2637.0,2636.7,3.7926]
[1724376703097,2.2792,2637.0,2636.8,3.79246]
[1724376704296,2.2792,2637.0,2636.9,3.79233]
[1724376704797,2.2792,2637.0,2636.8,3.79238]
[1724376705975,2.2792,2637.0,2636.9,3.79233]
[1724376709177,1.52,2637.1,2637.0,3.79218]
[1724376709373,4.52,2637.1,2637.0,3.79218]
[1724376709618,4.52,2637.1,2637.0,8.342816]
[1724376709619,1.52,2637.1,2637.0,8.342816]
[1724376710466,2.4202,2637.5,2637.3,3.79165]
[1724376711289,2.4202,2637.5,2637.2,3.79187]
[1724376712935,2.4202,2637.5,2637.1,7.58391]
[1724376713503,2.4202,2637.5,2637.2,3.79186]
[1724376714725,2.4202,2637.5,2637.3,7.58348]
[1724376714921,2.4202,2637.5,2637.3,3.79174]
[1724376715453,2.4202,2637.5,2637.3,3.79167]
[1724376715603,5.3133,2637.8,2637.5,3.79134]
[1724376715937,1.52,2637.9,2637.8,3.79103]
[1724376717036,1.52,2637.9,2637.7,3.79109]
[1724376717235,1.52,2637.9,2637.8,3.79103]
[1724376717446,1.52,2637.9,2637.7,3.79109]
[1724376718311,1.52,2637.9,2637.5,3.79134]
[1724376718624,1.52,2637.9,2637.5,4.170474]
[1724376719782,1.52,2637.9,2637.7,3.79115]
[1724376720839,1.52,2637.9,2637.5,7.961814]
[1724376721068,1.52,2637.9,2637.6,3.79119]
[1724376721278,1.52,2637.9,2637.7,3.79115]
[1724376723323,1.52,2637.9,2637.8,3.79103]
[1724376725176,1.52,2637.9,2637.8,8.340278]
[1724376725343,1.52,2637.9,2637.8,4.549248]
[1724376725544,1.52,2637.9,2637.8,3.79103]
[1724376728151,2.3241,2638.8,2638.0,3.79074]
[1724376728348,0.59454682,2638.5,2637.8,7.58192]
[1724376728659,3.59454682,2638.5,2637.8,7.58192]
[1724376728994,3.59454682,2638.5,2637.8,0.758192]
[1724376729144,3.59454682,2638.5,2638.1,7.5811]
[1724376729346,3.59454682,2638.5,2638.1,3.79052]
[1724376729347,3.0,2638.5,2638.1,3.79052]
[1724376729601,5.3241,2638.6,2638.1,3.79052]
[1724376731103,5.3241,2638.6,2638.2,3.79045]
[1724376731677,5.3241,2638.6,2638.2,0.758097]
[1724376732093,5.3241,2638.6,2638.3,3.79029]
[1724376732965,5.3241,2638.6,2638.2,4.548547]
[1724376733302,5.3241,2638.6,2638.1,3.79051]
[1724376733799,5.3241,2638.6,2638.2,3.79045]
[1724376734373,5.3241,2638.6,2638.3,3.79029]
[1724376735163,5.3241,2638.6,2638.3,3.79024]
[1724376735366,2.3241,2638.6,2638.4,4.169154]
[1724376735601,1.52,2638.7,2638.5,3.79003]
[1724376736396,1.52,2638.7,2638.6,3.78988]
[1724376737298,1.52,2638.7,2638.6,7.57976]
[1724376739015,0.0021446,2638.9,2638.8,7.5792]
[1724376740013,0.0021446,2638.9,2638.8,8.33712]
[1724376740374,0.0021446,2638.9,2638.8,14.38062]
[1724376740516,0.0021446,2638.9,2638.8,14.93062]
[1724376741871,0.0021446,2638.9,2638.8,12.12672]
[1724376742073,0.0021446,2638.9,2638.8,3.7896]
[1724376742271,2.3996446,2638.9,2638.8,3.7896]
[1724376743234,2.3996446,2638.9,2638.7,3.78972]
[1724376743479,2.3996446,2638.9,2638.7,7.57937]
[1724376743632,2.3996446,2638.9,2638.7,3.78965]
[1724376744234,0.0021446,2638.9,2638.8,7.5792]
[1724376744436,0.0021446,2638.9,2638.8,8.33712]
[1724376745348,0.0021446,2638.9,2638.8,7.5792]
[1724376752217,0.0021446,2638.9,2638.8,3.7896]
[1724376753009,2.3448446,2638.9,2638.8,3.7896]
[1724376754412,2.3427,2638.9,2638.8,3.7896]
[1724376757220,2.3427,2638.9,2638.8,7.5792]
[1724376757647,2.2659,2639.2,2639.1,3.78907]
[1724376760105,2.2659,2639.2,2639.0,7.57852]
[1724376760334,2.2659,2639.2,2639.0,3.78921]
[1724376765232,1.52,2639.4,2639.3,3.78888]
[1724376765457,1.52,2639.4,2639.3,7.57776]
[1724376767375,1.52,2639.4,2639.3,3.78888]
[1724376767973,1.52,2639.4,2639.2,7.57792]
[1724376768610,1.52,2639.4,2639.2,3.78891]
[1724376768761,1.52,2639.4,2639.1,3.78909]
[1724376768964,1.52,2639.4,2639.1,3.7891]
[1724376769337,1.52,2639.4,2639.1,7.5782]
[1724376769665,1.52,2639.4,2639.2,3.78902]
[1724376773608,1.52,2639.4,2639.3,7.57776]
[1724376775669,1.52,2639.4,2639.1,3.78902]
[1724376775814,2.3488,2639.3,2638.9,3.7894]
[1724376776976,2.3488,2639.3,2639.1,3.78915]
[1724376777178,2.73568,2639.3,2638.9,3.7894]
[1724376777478,2.73568,2639.3,2638.7,14.93933]
[1724376777709,2.4781,2639.1,2638.7,11.14966]
[1724376778129,2.4781,2639.1,2638.7,7.36]
[1724376778283,3.064598,2639.1,2638.7,7.36]
[1724376778979,3.064598,2639.1,2638.7,11.14973]
[1724376779622,3.064598,2639.1,2638.7,14.93938]
[1724376779805,2.4781,2639.1,2638.7,14.93938]
[1724376780190,2.4781,2639.1,2638.7,14.93931]
[1724376780394,2.4781,2639.1,2638.7,7.36]
[1724376780700,2.4781,2639.1,2638.9,3.78931]
[1724376782046,2.4781,2639.1,2639.0,3.78931]
[1724376783763,2.4781,2639.1,2638.9,3.78944]
[1724376784128,2.4781,2639.1,2638.9,3.7872954]
[1724376785963,2.4781,2639.1,2638.7,14.93928]
[1724376786141,2.4781,2639.1,2638.7,11.14964]
[1724376786462,2.4781,2639.1,2638.8,3.78959]
[1724376787016,2.4781,2639.1,2638.9,3.78943]
[1724376787411,2.4781,2639.1,2638.7,14.93924]
[1724376787923,2.4781,2639.1,2638.9,3.78945]
[1724376790475,2.4781,2639.1,2639.0,3.78931]
[1724376797761,2.4781,2639.1,2638.8,7.57903]
[1724376798076,2.4781,2639.1,2638.9,3.78935]
[1724376798295,2.4781,2639.1,2638.8,7.57896]
[1724376798497,2.4781,2639.1,2638.8,3.78945]
[1724376798679,2.4781,2639.1,2638.8,7.57897]
[1724376799026,5.365,2639.3,2639.0,3.7892]
[1724376799202,2.365,2639.3,2639.0,3.7892]
[1724376801314,1.52,2639.4,2639.1,3.78907]
[1724376801482,1.52,2639.4,2639.0,3.7892]
[1724376802385,2.4554,2639.3,2639.0,7.57843]
[1724376802583,2.4554,2639.3,2639.0,3.7892]
[1724376803361,2.85294,2639.3,2638.8,3.7895]
[1724376803519,2.85294,2639.3,2638.7,3.78966]
[1724376803666,2.2882,2639.1,2638.6,7.36]
[1724376803864,2.2882,2639.1,2638.8,3.78949]
[1724376804100,2.2882,2639.1,2638.9,3.78943]
[1724376804313,2.856774,2639.1,2638.6,14.93958]
[1724376804496,2.856774,2639.1,2638.6,11.14978]
[1724376804694,2.856774,2639.1,2638.6,14.93958]
[1724376805108,2.856774,2639.1,2638.7,3.78973]
[1724376806024,2.856774,2639.1,2638.7,7.57938]
[1724376806178,2.856774,2639.1,2638.7,3.78965]
[1724376806908,2.2882,2639.1,2638.8,3.78959]
[1724376808032,2.2882,2639.1,2639.0,3.78931]
[1724376808528,5.2784,2639.3,2639.1,3.78909]
[1724376808707,2.2784,2639.3,2639.2,1.13052608]
[1724376809109,2.2784,2639.3,2639.2,8.70856608]